fUSD/lending_fUSD_20250807
["ID","MTS","AMOUNT","RATE_DAILY","PERIOD"]
[377851140,1754575863087,-400.0,0.00019726,2]
[377851142,1754575863098,-1452.04,0.00019963,2]
[377851144,1754575863107,-67.60155249,0.00019964,2]
[377851146,1754575863118,-400.0,0.00019964,2]
[377851148,1754575863128,-1493.38,0.00019964,2]
[377851150,1754575863137,-151.0,0.00019964,2]
[377851152,1754575863147,-2201.49,0.00019964,2]
[377851154,1754575863156,-2387.87,0.00019964,2]
[377851156,1754575863166,-1666.42,0.00019964,2]
[377851158,1754575863176,-151.0,0.00019964,2]
[377851160,1754575863185,-909.19,0.00019964,2]
[377851162,1754575863195,-837.76,0.00019964,2]
[377851164,1754575863205,-1491.12,0.00019964,2]
[377851166,1754575863214,-471.22,0.00019964,2]
[377851168,1754575863223,-499.47,0.00019964,2]
[377851170,1754575863232,-1914.87,0.00019964,2]
[377851172,1754575863242,-2455.61,0.00019964,2]
[377851174,1754575863251,-1619.44,0.00019964,2]
[377851176,1754575863261,-400.0,0.00019964,2]
[377851178,1754575863271,-2116.4,0.00019964,2]
[377851180,1754575863280,-822.96,0.00019964,2]
[377851182,1754575863290,-2137.7,0.00019964,2]
[377851184,1754575863299,-798.07,0.00019964,2]
[377851185,1754575863308,-334.52460116,0.00019964,2]
[377851187,1754575863318,-1222.21,0.00019964,2]
[377851189,1754575863327,-521.6,0.00019964,2]
[377851191,1754575863336,-151.0,0.00019964,2]
[377851193,1754575863346,-1426.72,0.00019964,2]
[377851195,1754575863355,-400.0,0.00019964,2]
[377851197,1754575863367,-2568.81,0.00019964,2]
[377851199,1754575863377,-400.0,0.00019964,2]
[377851201,1754575863386,-643.83,0.00019964,2]
[377851203,1754575863396,-1012.31,0.00019964,2]
[377851205,1754575863406,-400.0,0.00019964,2]
[377851207,1754575863415,-551.04,0.00019964,2]
[377851209,1754575863425,-1838.15,0.00019964,2]
[377851211,1754575863436,-400.0,0.00019964,2]
[377851213,1754575863446,-2206.56,0.00019964,2]
[377851215,1754575863456,-1404.18,0.00019964,2]
[377851217,1754575863466,-151.0,0.00019964,2]
[377851219,1754575863475,-400.0,0.00019964,2]
[377851221,1754575863485,-400.0,0.00019964,2]
[377851223,1754575863494,-400.0,0.00019964,2]
[377851225,1754575863504,-400.0,0.00019964,2]
[377851227,1754575863513,-400.0,0.00019964,2]
[377851229,1754575863523,-806.95,0.00019964,2]
[377851231,1754575863533,-3062.82,0.00019964,2]
[377851232,1754575863542,-1286.39,0.00019964,2]
[377851234,1754575863551,-1754.45,0.00019964,2]
[377851237,1754575863561,-169.715098,0.00019964,2]
[377851239,1754575863571,-400.0,0.00019964,2]
[377851241,1754575863581,-1586.83,0.00019964,2]
[377851243,1754575863590,-801.57,0.00019964,2]
[377851244,1754575863600,-400.0,0.00019964,2]
[377851246,1754575863611,-400.0,0.00019964,2]
[377851248,1754575863622,-400.0,0.00019964,2]
[377851251,1754575863631,-151.0,0.00019964,2]
[377851252,1754575863641,-2083.21,0.00019964,2]
[377851254,1754575863650,-151.0,0.00019964,2]
[377851256,1754575863660,-945.94,0.00019964,2]
[377851258,1754575863669,-151.0,0.00019964,2]
[377851260,1754575863679,-770.078293,0.00019964,2]
[377851262,1754575863688,-770.078293,0.00019964,2]
[377851264,1754575863697,-2378.88,0.00019964,2]
[377851266,1754575863706,-413.14,0.00019964,2]
[377851268,1754575863715,-158.789933,0.00019964,2]
[377851270,1754575863725,-400.0,0.00019964,2]
[377851272,1754575863734,-400.0,0.00019964,2]
[377851274,1754575863744,-644.85,0.00019964,2]
[377851276,1754575863753,-400.0,0.00019964,2]
[377851278,1754575863763,-1044.13,0.00019964,2]
[377851280,1754575863772,-400.0,0.00019964,2]
[377851282,1754575863782,-2051.84,0.00019964,2]
[377851283,1754575863792,-1233.81,0.00019964,2]
[377851285,1754575863801,-151.0,0.00019964,2]
[377851287,1754575863811,-1929.07,0.00019964,2]
[377851289,1754575863820,-860.81,0.00019964,2]
[377851291,1754575863830,-1801.83,0.00019964,2]
[377851293,1754575863839,-694.9,0.00019964,2]
[377851295,1754575863848,-500.0,0.00019964,2]
[377851297,1754575863858,-610.53,0.00019964,2]
[377851299,1754575863869,-1099.75,0.00019964,2]
[377851301,1754575863879,-3481.03,0.00019964,2]
[377851303,1754575863889,-1850.92,0.00019964,2]
[377851305,1754575863899,-931.39,0.00019964,2]
[377851307,1754575863908,-1821.24,0.00019964,2]
[377851309,1754575863918,-400.0,0.00019964,2]
[377851311,1754575863927,-204.215483,0.00019964,2]
[377851313,1754575863936,-204.215483,0.00019964,2]
[377851315,1754575863946,-929.84,0.00019964,2]
[377851317,1754575863956,-6934.37,0.00019964,2]
[377851319,1754575863966,-2292.26,0.00019964,2]
[377851321,1754575863975,-400.0,0.00019964,2]
[377851323,1754575863986,-400.0,0.00019964,2]
[377851325,1754575863995,-151.0,0.00019965,2]
[377851327,1754575864007,-151.0,0.00019965,2]
[377851328,1754575864018,-151.0,0.00019965,2]
[377851330,1754575864028,-151.0,0.00019965,2]
[377851332,1754575864038,-151.0,0.00019965,2]
[377851334,1754575864049,-152.751163,0.00019965,2]
[377851336,1754575864060,-151.0,0.00019965,2]
[377851339,1754575864069,-151.0,0.00019965,2]
[377851341,1754575864079,-151.0,0.00019965,2]
[377851343,1754575864090,-510.30793999,0.00019965,2]
[377851345,1754575864100,-153.80244,0.00019965,2]
[377851346,1754575864111,-500.0,0.00019965,2]
[377851348,1754575864121,-500.0,0.00019965,2]
[377851350,1754575864130,-151.0,0.00019965,2]
[377851352,1754575864140,-151.0,0.00019965,2]
[377851354,1754575864150,-151.0,0.00019965,2]
[377851356,1754575864158,-500.0,0.00019965,2]
[377851358,1754575864169,-500.0,0.00019965,2]
[377851360,1754575864178,-151.0,0.00019965,2]
[377851362,1754575864189,-151.0,0.00019965,2]
[377851364,1754575864198,-151.0,0.00019965,2]
[377851366,1754575864207,-151.0,0.00019965,2]
[377851368,1754575864217,-837.76,0.00019965,2]
[377851370,1754575864226,-837.76,0.00019965,2]
[377851372,1754575864236,-300.0,0.00019965,2]
[377851374,1754575864246,-151.0,0.00019965,2]
[377851376,1754575864256,-2624.7976099,0.00019965,2]
[377851439,1754575864876,1400.0,0.000179,6]
[377851483,1754575865309,-407.82269628,0.00019178,2]
[377851485,1754575865326,-102.02730372,0.00019178,2]
[377851487,1754575865336,-509.85,0.00019452,2]
[377851490,1754575865346,-509.85,0.00019726,2]
[377851491,1754575865359,-576.92,0.00019866,2]
[377851493,1754575865374,-576.92,0.00019963,2]
[377851495,1754575865383,-1544.8823901,0.00019965,2]
[377851497,1754575865392,-2768.12,0.00019965,2]
[377851500,1754575865403,-643.83,0.00019965,2]
[377851501,1754575865413,-1826.35,0.00019965,2]
[377851504,1754575865422,-938.87,0.00019965,2]
[377851506,1754575865432,-400.0,0.00019965,2]
[377851507,1754575865443,-151.0,0.00019965,2]
[377851509,1754575865452,-748.61,0.00019965,2]
[377851512,1754575865462,-2263.51,0.00019965,2]
[377851514,1754575865472,-3098.38,0.00019965,2]
[377851515,1754575865480,-1090.91,0.00019965,2]
[377851517,1754575865490,-1090.91,0.00019965,2]
[377851519,1754575865499,-2233.13,0.00019965,2]
[377851521,1754575865507,-400.0,0.00019965,2]
[377851523,1754575865516,-896.66,0.00019965,2]
[377851525,1754575865526,-1631.80427587,0.00019965,2]
[377851536,1754575865652,-1900.0,0.000189,6]
[377851537,1754575865661,-151.0,0.00019452,2]
[377851538,1754575865670,-608.86572413,0.00019965,2]
[377851539,1754575865679,-400.0,0.00019965,2]
[377851540,1754575865688,-1023.08,0.00019965,2]
[377851541,1754575865697,-2356.38,0.00019965,2]
[377851542,1754575865706,-770.078293,0.00019965,2]
[377851543,1754575865715,-770.078293,0.00019965,2]
[377851544,1754575865724,-2401.54,0.00019965,2]
[377851545,1754575865733,-2716.86585972,0.00019965,2]
[377851888,1754576157724,175.0,0.00018816,7]
[377851890,1754576199158,366.03968246,0.00015068,2]
[377851891,1754576199183,87.33031754,0.00015068,2]
[377851892,1754576199394,453.37,0.00016701,2]
[377851893,1754576228721,5511.0,0.000184,5]
[377851894,1754576231340,400.0,0.00019178,7]
[377851895,1754576231404,370.59110148,0.00019452,7]
[377851898,1754576516120,150.0,0.00018,2]
[377851903,1754576617791,400.0,0.00017835,2]
[377851904,1754576637128,400.0,0.00017561,2]
[377851905,1754576642474,1000.0,0.0001845,4]
[377851907,1754576686380,519.0,0.00017868,2]
[377851912,1754576721096,150.0,0.0001726,2]
[377851913,1754576728525,150.0,0.0001726,2]
[377851914,1754576728590,150.0,0.0001726,2]
[377851915,1754576728722,150.0,0.0001726,2]
[377851916,1754576773916,400.0,0.00018,2]
[377851919,1754576775228,1200.0,0.00018,2]
[377851921,1754576832321,214.73385601,0.00015,2]
[377851928,1754576915415,5560.759999,0.000151,2]
[377851936,1754576928261,197.28,0.00013699,2]
[377851979,1754577031790,-167.08,0.00018032,2]
[377851982,1754577031801,-167.08,0.00018068,2]
[377851984,1754577031811,-167.08,0.00018104,2]
[377851986,1754577031822,-167.08,0.0001814,2]
[377851988,1754577031832,-167.08,0.00018176,2]
[377851990,1754577031841,-167.08,0.00018212,2]
[377851991,1754577031851,-399.8727,0.00018233,2]
[377851992,1754577031861,-228.41,0.00018319,2]
[377851993,1754577031870,-97.1373,0.00018334,2]
[377851994,1754577031888,-356.2327,0.00018334,2]
[377851995,1754577031898,-283.17,0.00018368,2]
[377851996,1754577031908,-324.47,0.00018567,3]
[377851997,1754577031917,-400.0,0.000186,6]
[377851998,1754577031927,-1200.0,0.00018671,2]
[377851999,1754577031936,-1660.34712709,0.00018672,2]
[377852000,1754577031948,-972.95752496,0.00018672,2]
[377852001,1754577031960,-3658.83074285,0.00018672,2]
[377852002,1754577031970,-900.0,0.000187,6]
[377852003,1754577031980,-1400.0,0.000188,6]
[377852004,1754577031991,-295.0,0.00018862,2]
[377852005,1754577032001,-166.13,0.00018883,2]
[377852006,1754577032011,-1900.0,0.000189,6]
[377852007,1754577032020,-168.55037904,0.000189,2]
[377852008,1754577032030,-3656.09323501,0.000189,2]
[377852009,1754577032039,-1000.0,0.000189,2]
[377852010,1754577032048,-2500.0,0.000189,2]
[377852011,1754577032058,-1000.0,0.00018927,2]
[377852012,1754577032067,-533.0,0.00018972,2]
[377852014,1754577032078,-466.47693658,0.00018973,2]
[377852015,1754577032088,-500.0,0.00018973,2]
[377852016,1754577032098,-500.0,0.00018973,2]
[377852017,1754577032107,-511.17771888,0.00018973,2]
[377852018,1754577032117,-500.0,0.00018973,2]
[377852019,1754577032126,-500.0,0.00018973,2]
[377852020,1754577032135,-500.62733883,0.00018973,2]
[377852021,1754577032146,-500.0,0.00018973,2]
[377852022,1754577032155,-500.0,0.00018973,2]
[377852023,1754577032165,-500.0,0.00018973,2]
[377852024,1754577032174,-500.0,0.00018973,2]
[377852025,1754577032183,-205.1696692,0.00018973,2]
[377852026,1754577032194,-500.0,0.00018973,2]
[377852027,1754577032203,-500.0,0.00018973,2]
[377852028,1754577032212,-615.18536269,0.00018973,2]
[377852029,1754577032221,-500.0,0.00018973,2]
[377852030,1754577032231,-500.0,0.00018973,2]
[377852031,1754577032240,-1837.22096895,0.00018977,2]
[377852032,1754577032250,-208.53435998,0.00018999,2]
[377852033,1754577032259,-288.15537921,0.00018999,2]
[377852034,1754577032269,-500.0,0.00018999,2]
[377852035,1754577032278,-218.23217237,0.00018999,2]
[377852036,1754577032289,-525.97774205,0.00018999,2]
[377852037,1754577032299,-199.31583245,0.00018999,2]
[377852038,1754577032308,-367.5,0.00018999,2]
[377852039,1754577032320,-300.0,0.00018999,2]
[377852040,1754577032330,-291007.52333825,0.00019,2]
[377852043,1754577036463,-159.08485092,0.0001899,2]
[377852044,1754577036473,-5884.14245826,0.00019,2]
[377852055,1754577037714,-649.44398308,0.00019,2]
[377852056,1754577037726,-517.34603854,0.00019,2]
[377852057,1754577037809,-2133.0625596,0.00019,2]
[377852058,1754577037986,-1045.64167522,0.00019,2]
[377852059,1754577037998,-1312.5330282,0.00019,2]
[377852060,1754577038010,-1195.45243306,0.00019,2]
[377852278,1754577040210,-427.83885818,0.00019,2]
[377852281,1754577040230,-4671.89091102,0.00019,2]
[377852283,1754577040242,-977.85911426,0.00019,2]
[377852285,1754577040257,-614.2069482,0.00019,2]
[377852288,1754577040270,-4480.0738492,0.00019,2]
[377852292,1754577040302,-2331.2,0.00019,2]
[377852295,1754577040317,-4930.9259997,0.00019,2]
[377852526,1754577042673,-330.34,0.0001899,2]
[377852528,1754577042682,-54.50995493,0.0001899,2]
[377852542,1754577042807,150.0,0.00017,2]
[377852549,1754577042878,-275.83004507,0.0001899,2]
[377852551,1754577042888,-166.15204651,0.00018999,2]
[377852553,1754577042898,-10204.28442985,0.00019,2]
[377852555,1754577042909,-982.37125313,0.00019,2]
[377852558,1754577042921,-4632.81961171,0.00019,2]
[377852853,1754577045860,-150.0,0.0001818,2]
[377852854,1754577045870,-569841.31947522,0.00019,2]
[377852873,1754577046118,-111282.07066186,0.00019,2]
[377854256,1754577111906,5511.0,0.000162,5]
[377854258,1754577126338,451.18,0.00015068,2]
[377854259,1754577126561,451.18,0.00016681,2]
[377854283,1754577238834,175.0,0.00018197,7]
[377854326,1754577543735,400.0,0.000181,3]
[377854327,1754577569795,150.0,0.00016,2]
[377854328,1754577570167,150.0,0.0001718,2]
[377854329,1754577655278,638.752003,0.00017932,2]
[377854336,1754577757278,400.0,0.00018,2]
[377854345,1754577849937,203.15,0.00013699,2]
[377854346,1754577870110,339.14,0.00017838,2]
[377854348,1754577915360,150.0,0.00017088,2]
[377854349,1754577915885,150.0,0.00017088,2]
[377854350,1754577976431,167.84,0.00017873,2]
[377854354,1754578018270,161.43,0.00017875,2]
[377854355,1754578018502,161.43,0.00017935,2]
[377854356,1754578018714,161.43,0.00017995,2]
[377854358,1754578104287,150.0,0.00015,2]
[377854359,1754578104660,150.0,0.0001618,2]
[377854360,1754578105072,150.0,0.0001737,2]
[377854365,1754578126272,481.99382445,0.00017109,2]
[377854366,1754578126295,37.00617555,0.00017109,2]
[377854367,1754578155041,175.79,0.00017827,2]
[377854373,1754578232046,-1000.0,0.00018029,2]
[377854374,1754578232056,-161.43,0.00018054,2]
[377854375,1754578232067,-252.15,0.00018107,2]
[377854376,1754578232079,-112.94501,0.00018131,2]
[377854377,1754578232387,-449.05499,0.00018131,2]
[377854378,1754578232397,-1200.0,0.00018131,2]
[377854379,1754578232407,-16103.5,0.00018132,2]
[377854380,1754578232417,-202.0,0.0001825,2]
[377854381,1754578232426,-451.18,0.00018293,2]
[377854382,1754578232436,-175.79,0.00018496,2]
[377854383,1754578232446,-150.0,0.0001855,2]
[377854384,1754578232455,-202.0,0.0001857,2]
[377854385,1754578232465,-700.0,0.000186,6]
[377854386,1754578232474,-167.64,0.00018645,2]
[377854387,1754578232484,-1400.0,0.000187,6]
[377854388,1754578232494,-339.14,0.0001873,2]
[377854389,1754578232504,-162.8,0.00018751,2]
[377854390,1754578232514,-216.51,0.00018753,2]
[377854391,1754578232525,-1312.254,0.00018786,2]
[377854392,1754578232534,-170.929,0.00018786,2]
[377854393,1754578232543,-7007.31005086,0.000188,2]
[377854394,1754578232553,-2100.0,0.000188,6]
[377854395,1754578232563,-2031.07664197,0.0001881,2]
[377854396,1754578232572,-71236.41908253,0.0001882,2]
[377854397,1754578232582,-490.06338785,0.00018844,2]
[377854398,1754578232591,-500.0,0.00018849,2]
[377854399,1754578232601,-151.0,0.0001887,2]
[377854400,1754578232610,-267.46074303,0.0001887,2]
[377854401,1754578232620,-202.0,0.0001888,2]
[377854402,1754578232629,-500.0,0.00018888,2]
[377854403,1754578232638,-500.0,0.00018888,2]
[377854404,1754578232648,-447.40404861,0.00018888,2]
[377854405,1754578232658,-2763.32713993,0.00018889,2]
[377854406,1754578232667,-401.19111454,0.00018889,2]
[377854408,1754578232677,-600.0,0.00018889,2]
[377854410,1754578232687,-151.0,0.00018889,2]
[377854411,1754578232696,-151.0,0.00018889,2]
[377854412,1754578232706,-151.0,0.00018889,2]
[377854413,1754578232715,-151.0,0.00018889,2]
[377854414,1754578232724,-500.0,0.00018889,2]
[377854415,1754578232734,-500.0,0.00018889,2]
[377854416,1754578232743,-500.0,0.00018889,2]
[377854417,1754578232753,-500.0,0.00018889,2]
[377854418,1754578232762,-500.0,0.00018889,2]
[377854419,1754578232774,-500.0,0.00018889,2]
[377854420,1754578232784,-500.0,0.00018889,2]
[377854421,1754578232793,-500.0,0.00018889,2]
[377854422,1754578232803,-160.0,0.00018889,2]
[377854423,1754578232813,-532.99137518,0.00018889,2]
[377854424,1754578232823,-250.0,0.00018889,2]
[377854425,1754578232834,-250.0,0.00018889,2]
[377854426,1754578232844,-250.0,0.00018889,2]
[377854427,1754578232854,-250.0,0.00018889,2]
[377854428,1754578232864,-250.0,0.00018889,2]
[377854429,1754578232874,-250.0,0.00018889,2]
[377854430,1754578232883,-500.0,0.00018889,2]
[377854431,1754578232893,-250.0,0.00018889,2]
[377854432,1754578232902,-250.0,0.00018889,2]
[377854433,1754578232911,-250.0,0.00018889,2]
[377854434,1754578232921,-500.0,0.00018889,2]
[377854435,1754578232933,-250.0,0.00018889,2]
[377854436,1754578232942,-250.0,0.00018889,2]
[377854437,1754578232952,-500.0,0.00018889,2]
[377854438,1754578232962,-250.0,0.00018889,2]
[377854439,1754578232971,-250.0,0.00018889,2]
[377854440,1754578232981,-500.0,0.00018889,2]
[377854441,1754578232991,-250.0,0.00018889,2]
[377854442,1754578233001,-250.0,0.00018889,2]
[377854443,1754578233010,-500.0,0.00018889,2]
[377854444,1754578233021,-250.0,0.00018889,2]
[377854445,1754578233031,-500.0,0.00018889,2]
[377854446,1754578233041,-200.0,0.00018889,2]
[377854447,1754578233051,-500.0,0.00018889,2]
[377854448,1754578233061,-500.0,0.00018889,2]
[377854449,1754578233070,-500.0,0.00018889,2]
[377854450,1754578233080,-500.0,0.00018889,2]
[377854451,1754578233090,-497.9837557,0.00018889,2]
[377854452,1754578233099,-500.0,0.00018889,2]
[377854453,1754578233109,-500.0,0.00018889,2]
[377854454,1754578233119,-500.0,0.00018889,2]
[377854455,1754578233128,-500.0,0.00018889,2]
[377854456,1754578233138,-500.0,0.00018889,2]
[377854457,1754578233148,-500.0,0.00018889,2]
[377854458,1754578233158,-500.0,0.00018889,2]
[377854459,1754578233167,-500.0,0.00018889,2]
[377854460,1754578233177,-500.0,0.00018889,2]
[377854461,1754578233187,-500.0,0.00018889,2]
[377854462,1754578233197,-300.0,0.00018889,2]
[377854463,1754578233207,-300.0,0.00018889,2]
[377854464,1754578233217,-500.0,0.00018889,2]
[377854465,1754578233226,-300.0,0.00018889,2]
[377854466,1754578233236,-300.0,0.00018889,2]
[377854467,1754578233246,-300.0,0.00018889,2]
[377854468,1754578233255,-300.0,0.00018889,2]
[377854469,1754578233266,-300.0,0.00018889,2]
[377854470,1754578233276,-400.0,0.00018889,2]
[377854471,1754578233286,-151.0,0.00018889,2]
[377854472,1754578233296,-1007.07248875,0.00018899,2]
[377854473,1754578233306,-1617.3953,0.000189,2]
[377854474,1754578233315,-51807.37442001,0.000189,2]
[377854479,1754578237869,-2523.35957434,0.000188,2]
[377854480,1754578237882,-31962.96952566,0.000188,2]
[377854481,1754578237891,-35675.12937999,0.000189,2]
[377854482,1754578237901,-1000.0,0.000189,2]
[377854483,1754578237910,-190.44285229,0.000189,2]
[377854484,1754578237920,-1000.0,0.000189,2]
[377854485,1754578237929,-5000.23054403,0.000189,2]
[377854486,1754578237939,-260.44313147,0.000189,2]
[377854487,1754578237949,-960.9467,0.000189,2]
[377854488,1754578237959,-2900.0,0.000189,6]
[377854489,1754578237968,-2500.0,0.000189,2]
[377854490,1754578237978,-227.75115474,0.000189,2]
[377854491,1754578237987,-153.1507244,0.000189,2]
[377854492,1754578237997,-7007.31005082,0.00018922,2]
[377854493,1754578238006,-500.0,0.00018944,2]
[377854494,1754578238016,-4551.79280189,0.00018976,2]
[377854495,1754578238027,-642.28,0.00018979,3]
[377854496,1754578238036,-150.0,0.00018988,2]
[377854497,1754578238045,-150.0,0.00018988,2]
[377854498,1754578238055,-150.0,0.00018988,2]
[377854499,1754578238064,-150.0,0.00018988,2]
[377854500,1754578238074,-150.0,0.00018988,2]
[377854501,1754578238083,-262.6977922,0.00018988,2]
[377854502,1754578238092,-150.0,0.00018988,2]
[377854503,1754578238102,-152.29848053,0.00018988,2]
[377854504,1754578238110,-500.0,0.00018988,2]
[377854505,1754578238120,-227.75115474,0.00018989,2]
[377854506,1754578238130,-179.73314277,0.0001899,2]
[377854507,1754578238140,-500.0,0.00018999,2]
[377854508,1754578238149,-1718.30765992,0.00018999,2]
[377854509,1754578238159,-300.0,0.00018999,2]
[377854510,1754578238168,-300.0,0.00018999,2]
[377854511,1754578238178,-34784.87616404,0.00019,2]
[377854568,1754578238898,-5731.8,0.00019,2]
[377854571,1754578238910,-860.61830788,0.00019,2]
[377854708,1754578240403,-581.8,0.00019,2]
[377854716,1754578240474,-4924.83817615,0.00019,2]
[377854845,1754578241794,-888.0,0.00019,2]
[377855017,1754578243350,-1180.22,0.0001899,2]
[377855019,1754578243360,-583.78,0.0001899,2]
[377855021,1754578243371,-596.44,0.0001899,2]
[377855023,1754578243380,-26241.03,0.00019,2]
[377855319,1754578246470,-762.37499964,0.00019,2]
[377856784,1754578363127,420.69,0.00015068,2]
[377856785,1754578363353,420.69,0.00016672,2]
[377856786,1754578426675,175.0,0.00018103,7]
[377856787,1754578497023,1017.89,0.00017995,2]
[377856791,1754578635693,150.0,0.000159,2]
[377856792,1754578635809,150.0,0.0001708,2]
[377856793,1754578659730,400.0,0.00019767,7]
[377856794,1754578677344,1000.0,0.00017906,2]
[377856800,1754578797692,456.2,0.00017882,2]
[377856803,1754578824910,200.94,0.00013699,2]
[377856807,1754578925032,241.92,0.00017834,2]
[377856810,1754578940635,164.45,0.0001782,2]
[377856814,1754578968317,160.74,0.00017808,2]
[377856815,1754578968398,160.74,0.00017826,2]
[377856816,1754578968458,160.74,0.00017844,2]
[377856817,1754578968618,160.74,0.00017862,2]
[377856818,1754578968761,160.74,0.0001788,2]
[377856819,1754578968961,160.74,0.00017897,2]
[377856820,1754578969186,160.74,0.00017915,2]
[377856821,1754578969427,160.74,0.00017933,2]
[377856822,1754578969637,160.74,0.00017951,2]
[377856823,1754578969885,160.74,0.00017969,2]
[377856824,1754578970509,160.74,0.00017986,2]
[377856830,1754579082195,150.0,0.00019767,7]
[377856831,1754579088100,280.62,0.00017784,2]
[377856832,1754579094258,150.0,0.0002223,90]
[377856833,1754579107942,150.0,0.00017088,2]
[377856834,1754579110810,150.0,0.00017088,2]
[377856835,1754579112331,150.0,0.00017088,2]
[377856836,1754579114660,389.87336585,0.0002,30]
[377856837,1754579115809,150.0,0.00017088,2]
[377856838,1754579127750,153.3762844,0.00017088,2]
[377856839,1754579127867,150.0,0.00017088,2]
[377856840,1754579127914,150.0,0.00017088,2]
[377856841,1754579159828,150.0,0.000159,2]
[377856842,1754579160198,150.0,0.0001708,2]
[377856843,1754579177905,519.0,0.00017684,2]
[377856846,1754579216051,175.79,0.0001783,2]
[377856850,1754579286495,378.62,0.00015068,2]
[377856851,1754579286705,378.62,0.00016654,2]
[377856852,1754579372453,200.0,0.000185,3]
[377856857,1754579432231,-150.0,0.00018042,2]
[377856858,1754579432242,-161.05499691,0.00018122,2]
[377856859,1754579432251,-355.46773877,0.00018168,2]
[377856860,1754579432262,-273.72450163,0.00018168,2]
[377856861,1754579432360,-947.8777596,0.00018168,2]
[377856862,1754579432370,-150.0,0.00018222,2]
[377856863,1754579432379,-378.62,0.0001824,2]
[377856864,1754579432388,-150.0,0.0001827,2]
[377856865,1754579432398,-150.0,0.00018449,2]
[377856866,1754579432407,-500.0,0.000185,2]
[377856867,1754579432417,-1300.0,0.000185,6]
[377856868,1754579432426,-167.79,0.00018517,2]
[377856869,1754579432435,-2700.0,0.000186,6]
[377856870,1754579432444,-300.0,0.00018656,2]
[377856871,1754579432454,-300.0,0.00018656,2]
[377856872,1754579432463,-1200.0,0.00018656,2]
[377856873,1754579432473,-613.0,0.00018657,2]
[377856874,1754579432482,-4496.15507419,0.00018658,2]
[377856875,1754579432492,-267.46074303,0.00018658,2]
[377856876,1754579432502,-151.0,0.00018658,2]
[377856877,1754579432511,-4000.0,0.000187,6]
[377856878,1754579432520,-2897.21222636,0.00018713,2]
[377856879,1754579432529,-241.92,0.00018726,2]
[377856880,1754579432539,-600.0,0.00018736,2]
[377856881,1754579432548,-600.0,0.00018736,2]
[377856882,1754579432558,-600.0,0.00018736,2]
[377856883,1754579432567,-440.08,0.00018736,2]
[377856884,1754579432576,-173.21,0.00018746,2]
[377856885,1754579432585,-200.0,0.00018799,2]
[377856886,1754579432595,-600.0,0.00018799,2]
[377856887,1754579432605,-401.19111454,0.00018799,2]
[377856888,1754579432615,-160.0,0.00018799,2]
[377856889,1754579432624,-500.0,0.00018799,2]
[377856890,1754579432634,-151.0,0.00018799,2]
[377856891,1754579432644,-1000.0,0.000188,2]
[377856892,1754579432653,-6911.3942,0.000188,2]
[377856893,1754579432662,-6021.22119001,0.000188,2]